fUSD/lending_fUSD_20250301
["ID","MTS","AMOUNT","RATE_DAILY","PERIOD"]
[354996844,1740858691771,-500.0,0.00029315,2]
[354996845,1740858691781,-500.0,0.00029315,2]
[354996846,1740858691790,-500.0,0.00029315,2]
[354996847,1740858691799,-500.0,0.00029315,2]
[354996848,1740858691809,-528.74,0.00029315,2]
[354996849,1740858691819,-887.94,0.00029315,2]
[354996850,1740858691828,-500.0,0.00029315,2]
[354996851,1740858691837,-504.34,0.00029315,2]
[354996852,1740858691847,-626.91,0.00029315,2]
[354996853,1740858691856,-724.79,0.00029315,2]
[354996854,1740858691871,-572.85,0.00029315,2]
[354996855,1740858691880,-634.03,0.00029315,2]
[354996856,1740858691890,-544.81,0.00029315,2]
[354996857,1740858691900,-1225.41,0.00029315,2]
[354996858,1740858691909,-226.40545928,0.00029315,2]
[354996859,1740858691919,-650.4,0.00029315,2]
[354996860,1740858691929,-1646.57,0.00029315,2]
[354996861,1740858691939,-574.95,0.00029315,2]
[354996862,1740858691950,-548.18,0.00029315,2]
[354996863,1740858691960,-1162.75,0.00029315,2]
[354996864,1740858691971,-354.10839782,0.00029315,2]
[354996865,1740858691981,-550.88,0.00029315,2]
[354996866,1740858691991,-500.0,0.00029315,2]
[354996867,1740858692001,-574.67,0.00029315,2]
[354996868,1740858692011,-530.38,0.00029315,2]
[354996869,1740858692021,-606.9,0.00029315,2]
[354996870,1740858692031,-731.69,0.00029315,2]
[354996871,1740858692041,-555.80147449,0.00029315,2]
[354996872,1740858692051,-742.69,0.00029315,2]
[354996873,1740858692062,-553.15,0.00029315,2]
[354996874,1740858692072,-546.6,0.00029315,2]
[354996875,1740858692082,-938.89,0.00029315,2]
[354996876,1740858692092,-500.0,0.00029315,2]
[354996877,1740858692102,-500.0,0.00029315,2]
[354996878,1740858692113,-500.0,0.00029315,2]
[354996879,1740858692123,-500.0,0.00029315,2]
[354996880,1740858692133,-500.0,0.00029315,2]
[354996881,1740858692142,-702.7,0.00029315,2]
[354996882,1740858692159,-962.96,0.00029315,2]
[354996883,1740858692184,-871.98,0.00029315,2]
[354996884,1740858692202,-690.67,0.00029315,2]
[354996885,1740858692223,-4231.37,0.00029315,2]
[354996886,1740858692244,-500.0,0.00029315,2]
[354996887,1740858692267,-539.33,0.00029315,2]
[354996888,1740858692284,-741.36,0.00029315,2]
[354996889,1740858692304,-601.03,0.00029315,2]
[354996890,1740858692322,-6071.89,0.00029315,2]
[354996891,1740858692348,-845.71,0.00029315,2]
[354996892,1740858692368,-720.23,0.00029315,2]
[354996893,1740858692387,-569.42,0.00029315,2]
[354996894,1740858692407,-500.0,0.00029315,2]
[354996895,1740858692424,-569.65,0.00029315,2]
[354996896,1740858692447,-683.45,0.00029315,2]
[354996897,1740858692466,-838.27,0.00029315,2]
[354996898,1740858692481,-837.72,0.00029315,2]
[354996899,1740858692502,-825.34,0.00029315,2]
[354996900,1740858692515,-500.0,0.00029315,2]
[354996901,1740858692529,-500.0,0.00029315,2]
[354996902,1740858692547,-616.93023823,0.00029315,2]
[354996903,1740858692565,-500.0,0.00029315,2]
[354996904,1740858692584,-461.12,0.00029315,2]
[354996905,1740858692601,-500.0,0.00029315,2]
[354996906,1740858692615,-9196.21,0.00029315,2]
[354996907,1740858692634,-500.0,0.00029315,2]
[354996908,1740858692651,-540.61,0.00029315,2]
[354996909,1740858692669,-1573.23,0.00029315,2]
[354996910,1740858692686,-747.87,0.00029315,2]
[354996911,1740858692703,-532.68325109,0.00029315,2]
[354996912,1740858692719,-970.75,0.00029315,2]
[354996913,1740858692735,-1337.47,0.00029315,2]
[354996914,1740858692751,-556.96,0.00029315,2]
[354996915,1740858692767,-500.0,0.00029315,2]
[354996916,1740858692783,-519.03,0.00029315,2]
[354996917,1740858692801,-152.23423269,0.00029315,2]
[354996918,1740858692817,-526.62,0.00029315,2]
[354996919,1740858692834,-1519.99,0.00029315,2]
[354996920,1740858692851,-617.67301516,0.00029315,2]
[354996921,1740858692868,-3027.82,0.00029315,2]
[354996922,1740858692884,-7102.79,0.00029315,2]
[354996923,1740858692900,-500.0,0.00029315,2]
[354996924,1740858692916,-1042.84,0.00029315,2]
[354996925,1740858692931,-500.0,0.00029315,2]
[354996926,1740858692961,-266.67603175,0.00029315,2]
[354996927,1740858692983,-855.2,0.00029315,2]
[354996928,1740858693003,-500.0,0.00029315,2]
[354996929,1740858693024,-653.93,0.00029315,2]
[354996930,1740858693042,-1305.14,0.00029315,2]
[354996931,1740858693066,-569.78,0.00029588,2]
[354996932,1740858693088,-877.07,0.00029588,2]
[354996933,1740858693108,-500.0,0.00029588,2]
[354996934,1740858693127,-504.7,0.00029588,2]
[354996935,1740858693144,-612.55,0.00029588,2]
[354996936,1740858693162,-500.0,0.00029588,2]
[354996937,1740858693179,-1898.33,0.00029588,2]
[354996938,1740858693195,-783.37,0.00029588,2]
[354996939,1740858693214,-566.09,0.00029588,2]
[354996940,1740858693230,-507.39,0.00029588,2]
[354996941,1740858693251,-1579.83,0.00029589,60]
[354996942,1740858693270,-667.189794,0.00029589,2]
[354996943,1740858693288,-865.056936,0.00029589,2]
[354996944,1740858693303,-500.0,0.00029589,2]
[354996945,1740858693320,-500.0,0.00029589,2]
[354996946,1740858693338,-169.66189504,0.00029589,2]
[354996947,1740858693356,-500.0,0.00029589,2]
[354996948,1740858693373,-367.83705563,0.00029589,2]
[354996949,1740858693389,-642.9941802,0.00029589,2]
[354996950,1740858693413,-500.0,0.00029589,2]
[354996951,1740858693434,-500.0,0.00029589,2]
[354996952,1740858693454,-500.0,0.00029589,2]
[354996953,1740858693475,-171.66718325,0.00029589,2]
[354996954,1740858693493,-524.67,0.00029589,2]
[354996955,1740858693513,-500.0,0.00029589,2]
[354996956,1740858693530,-821.57,0.00029589,2]
[354996957,1740858693548,-1102.93,0.00029589,2]
[354996958,1740858693565,-507.92,0.00029589,2]
[354996959,1740858693582,-554.05,0.00029589,2]
[354996960,1740858693599,-500.0,0.00029589,2]
[354996961,1740858693616,-500.0,0.00029589,2]
[354996962,1740858693633,-500.0,0.00029589,2]
[354996963,1740858693650,-500.0,0.00029589,2]
[354996964,1740858693666,-500.0,0.00029589,2]
[354996965,1740858693688,-500.0,0.00029589,2]
[354996966,1740858693709,-500.0,0.00029589,2]
[354996967,1740858693724,-528.74,0.00029589,2]
[354996968,1740858693741,-887.94,0.00029589,2]
[354996969,1740858693756,-500.0,0.00029589,2]
[354996970,1740858693771,-504.34,0.00029589,2]
[354996971,1740858693787,-626.91,0.00029589,2]
[354996972,1740858693803,-724.79,0.00029589,2]
[354996973,1740858693819,-572.85,0.00029589,2]
[354996974,1740858693835,-634.03,0.00029589,2]
[354996975,1740858693854,-544.81,0.00029589,2]
[354996976,1740858693876,-1225.41,0.00029589,2]
[354996977,1740858693895,-650.4,0.00029589,2]
[354996978,1740858693913,-1646.57,0.00029589,2]
[354996979,1740858693931,-574.95,0.00029589,2]
[354996980,1740858693947,-548.18,0.00029589,2]
[354996981,1740858693965,-1162.75,0.00029589,2]
[354996982,1740858693980,-550.88,0.00029589,2]
[354996983,1740858693997,-500.0,0.00029589,2]
[354996984,1740858694014,-574.67,0.00029589,2]
[354996985,1740858694032,-530.38,0.00029589,2]
[354996986,1740858694047,-606.9,0.00029589,2]
[354996987,1740858694063,-731.69,0.00029589,2]
[354996988,1740858694079,-742.69,0.00029589,2]
[354996989,1740858694095,-553.15,0.00029589,2]
[354996990,1740858694112,-546.6,0.00029589,2]
[354996991,1740858694128,-938.89,0.00029589,2]
[354996992,1740858694144,-629.43364355,0.00029589,2]
[354996993,1740858694158,-500.0,0.00029589,2]
[354996994,1740858694168,-500.0,0.00029589,2]
[354996995,1740858694177,-500.0,0.00029589,2]
[354996996,1740858694484,-500.0,0.00029589,2]
[354996997,1740858694504,-702.7,0.00029589,2]
[354996998,1740858694514,-962.96,0.00029589,2]
[354996999,1740858694524,-871.98,0.00029589,2]
[354997000,1740858694534,-690.67,0.00029589,2]
[354997001,1740858694543,-4231.37,0.00029589,2]
[354997002,1740858694553,-500.0,0.00029589,2]
[354997003,1740858694563,-539.33,0.00029589,2]
[354997004,1740858694573,-741.36,0.00029589,2]
[354997005,1740858694583,-601.03,0.00029589,2]
[354997006,1740858694592,-6071.89,0.00029589,2]
[354997007,1740858694601,-845.71,0.00029589,2]
[354997008,1740858694611,-720.23,0.00029589,2]
[354997009,1740858694622,-569.42,0.00029589,2]
[354997010,1740858694631,-500.0,0.00029589,2]
[354997011,1740858694641,-569.65,0.00029589,2]
[354997012,1740858694650,-683.45,0.00029589,2]
[354997013,1740858694660,-838.27,0.00029589,2]
[354997014,1740858694670,-837.72,0.00029589,2]
[354997015,1740858694679,-825.34,0.00029589,2]
[354997016,1740858694688,-500.0,0.00029589,2]
[354997017,1740858694698,-351.26068565,0.00029589,2]
[354997018,1740858694708,-500.0,0.00029589,2]
[354997019,1740858694718,-500.0,0.00029589,2]
[354997020,1740858694727,-9196.21,0.00029589,2]
[354997021,1740858694736,-500.0,0.00029589,2]
[354997022,1740858694746,-540.61,0.00029589,2]
[354997023,1740858694755,-1573.23,0.00029589,2]
[354997024,1740858694765,-747.87,0.00029589,2]
[354997025,1740858694775,-970.75,0.00029589,2]
[354997026,1740858694784,-1337.47,0.00029589,2]
[354997027,1740858694794,-556.96,0.00029589,2]
[354997028,1740858694803,-500.0,0.00029589,2]
[354997029,1740858694813,-519.03,0.00029589,2]
[354997030,1740858694823,-526.62,0.00029589,2]
[354997031,1740858694833,-1519.99,0.00029589,2]
[354997032,1740858694842,-3027.82,0.00029589,2]
[354997033,1740858694852,-7102.79,0.00029589,2]
[354997034,1740858694862,-282.07645279,0.00029589,2]
[354997035,1740858694872,-1042.84,0.00029589,2]
[354997036,1740858694881,-500.0,0.00029589,2]
[354997037,1740858694891,-855.2,0.00029589,2]
[354997038,1740858694900,-254.48171497,0.00029589,2]
[354997039,1740858694910,-653.93,0.00029589,2]
[354997040,1740858694920,-6281.99418402,0.00029763,2]
[354997041,1740858694930,-215.11880552,0.00029763,2]
[354997042,1740858694940,-500.0,0.00029808,120]
[354997043,1740858694949,-569.78,0.00029862,2]
[354997044,1740858694958,-877.07,0.00029862,2]
[354997045,1740858694968,-500.0,0.00029862,2]
[354997046,1740858694978,-504.7,0.00029862,2]
[354997047,1740858694987,-612.55,0.00029862,2]
[354997048,1740858694996,-500.0,0.00029862,2]
[354997049,1740858695006,-1898.33,0.00029862,2]
[354997050,1740858695015,-783.37,0.00029862,2]
[354997051,1740858695025,-566.09,0.00029862,2]
[354997052,1740858695035,-507.39,0.00029862,2]
[354997053,1740858695044,-1579.83,0.00029863,60]
[354997054,1740858695054,-667.189794,0.00029863,2]
[354997055,1740858695064,-865.056936,0.00029863,2]
[354997056,1740858695073,-500.0,0.00029863,2]
[354997057,1740858695083,-399.91656858,0.00029863,2]
[354997058,1740858695093,-500.0,0.00029863,2]
[354997059,1740858695102,-500.0,0.00029863,2]
[354997060,1740858695112,-500.0,0.00029863,2]
[354997061,1740858695121,-285.33526436,0.00029863,2]
[354997062,1740858695131,-524.67,0.00029863,2]
[354997063,1740858695141,-500.0,0.00029863,2]
[354997064,1740858695151,-821.57,0.00029863,2]
[354997065,1740858695161,-1102.93,0.00029863,2]
[354997066,1740858695171,-507.92,0.00029863,2]
[354997067,1740858695180,-554.05,0.00029863,2]
[354997068,1740858695190,-425.72951276,0.00029863,2]
[354997069,1740858695199,-189.40310373,0.00029863,2]
[354997070,1740858695210,-500.0,0.00029863,2]
[354997071,1740858695219,-500.0,0.00029863,2]
[354997072,1740858695229,-500.0,0.00029863,2]
[354997073,1740858695238,-500.0,0.00029863,2]
[354997074,1740858695249,-500.0,0.00029863,2]
[354997075,1740858695259,-528.74,0.00029863,2]
[354997076,1740858695269,-887.94,0.00029863,2]
[354997077,1740858695279,-500.0,0.00029863,2]
[354997078,1740858695290,-504.34,0.00029863,2]
[354997079,1740858695300,-626.91,0.00029863,2]
[354997080,1740858695309,-724.79,0.00029863,2]
[354997081,1740858695319,-572.85,0.00029863,2]
[354997082,1740858695331,-634.03,0.00029863,2]
[354997083,1740858695342,-544.81,0.00029863,2]
[354997084,1740858695351,-1225.41,0.00029863,2]
[354997085,1740858695361,-650.4,0.00029863,2]
[354997086,1740858695370,-1646.57,0.00029863,2]
[354997087,1740858695380,-574.95,0.00029863,2]
[354997088,1740858695389,-548.18,0.00029863,2]
[354997089,1740858695399,-1162.75,0.00029863,2]
[354997090,1740858695408,-550.88,0.00029863,2]
[354997091,1740858695419,-500.0,0.00029863,2]
[354997092,1740858695428,-574.67,0.00029863,2]
[354997093,1740858695437,-530.38,0.00029863,2]
[354997094,1740858695447,-606.9,0.00029863,2]
[354997095,1740858695457,-731.69,0.00029863,2]
[354997096,1740858695467,-742.69,0.00029863,2]
[354997097,1740858695477,-553.15,0.00029863,2]
[354997098,1740858695486,-546.6,0.00029863,2]
[354997099,1740858695496,-938.89,0.00029863,2]
[354997100,1740858695505,-500.0,0.00029863,2]
[354997101,1740858695515,-500.0,0.00029863,2]
[354997102,1740858695525,-422.69581502,0.00029863,2]
[354997103,1740858695535,-366.50679636,0.00029863,2]
[354997104,1740858695544,-702.7,0.00029863,2]
[354997105,1740858695554,-962.96,0.00029863,2]
[354997106,1740858695564,-871.98,0.00029863,2]
[354997107,1740858695573,-690.67,0.00029863,2]
[354997108,1740858695583,-4231.37,0.00029863,2]
[354997109,1740858695592,-500.0,0.00029863,2]
[354997110,1740858695602,-539.33,0.00029863,2]
[354997111,1740858695612,-741.36,0.00029863,2]
[354997112,1740858695622,-601.03,0.00029863,2]
[354997113,1740858695632,-6071.89,0.00029863,2]
[354997114,1740858695641,-845.71,0.00029863,2]
[354997115,1740858695651,-720.23,0.00029863,2]
[354997116,1740858695661,-569.42,0.00029863,2]
[354997117,1740858695670,-500.0,0.00029863,2]
[354997118,1740858695680,-569.65,0.00029863,2]
[354997119,1740858695690,-683.45,0.00029863,2]
[354997120,1740858695699,-838.27,0.00029863,2]
[354997121,1740858695709,-837.72,0.00029863,2]
[354997122,1740858695719,-825.34,0.00029863,2]
[354997123,1740858695728,-500.0,0.00029863,2]
[354997124,1740858695738,-422.68092863,0.00029863,2]
[354997125,1740858695747,-649.10416766,0.00029863,2]
[354997126,1740858695757,-9196.21,0.00029863,2]
[354997127,1740858695767,-186.0720747,0.00029863,2]
[354997128,1740858695776,-540.61,0.00029863,2]
[354997129,1740858695786,-1573.23,0.00029863,2]
[354997130,1740858695795,-747.87,0.00029863,2]
[354997131,1740858695805,-970.75,0.00029863,2]
[354997132,1740858695815,-1337.47,0.00029863,2]
[354997133,1740858695824,-556.96,0.00029863,2]
[354997134,1740858695834,-500.0,0.00029863,2]
[354997135,1740858695843,-519.03,0.00029863,2]
[354997136,1740858695853,-526.62,0.00029863,2]
[354997137,1740858695862,-1519.99,0.00029863,2]
[354997138,1740858695872,-3027.82,0.00029863,2]
[354997139,1740858695881,-7102.79,0.00029863,2]
[354997140,1740858695891,-1042.84,0.00029863,2]
[354997141,1740858695900,-500.0,0.00029863,2]
[354997142,1740858695910,-855.2,0.00029863,2]
[354997143,1740858695920,-653.93,0.00029863,2]
[354997144,1740858695929,-75041.13342775,0.000299,2]
[354997145,1740858695938,-1000.0,0.00029918,2]
[354997146,1740858695948,-371.66831912,0.00029969,5]
[354997147,1740858695957,-100000.0,0.0003,30]
[354997148,1740858695967,-2262.85140287,0.0003,2]
[354997149,1740858695976,-300.0,0.0003,2]
[354997150,1740858695986,-300.0,0.0003,2]
[354997151,1740858695996,-300.0,0.0003,2]
[354997152,1740858696006,-585.9221072,0.0003,2]
[354997153,1740858696017,-274.0,0.0003,2]
[354997154,1740858696026,-1579.83,0.00030136,60]
[354997155,1740858696036,-667.189794,0.00030136,2]
[354997156,1740858696046,-865.056936,0.00030136,2]
[354997157,1740858696055,-569.78,0.00030136,2]
[354997158,1740858696065,-877.07,0.00030136,2]
[354997159,1740858696075,-500.0,0.00030136,2]
[354997160,1740858696085,-500.0,0.00030136,2]
[354997161,1740858696095,-504.7,0.00030136,2]
[354997162,1740858696104,-612.55,0.00030136,2]
[354997163,1740858696113,-641.2025023,0.00030136,2]
[354997164,1740858696122,-500.0,0.00030136,2]
[354997165,1740858696132,-1898.33,0.00030136,2]
[354997166,1740858696141,-783.37,0.00030136,2]
[354997167,1740858696150,-433.43513622,0.00030136,2]
[354997168,1740858696160,-566.09,0.00030136,2]
[354997169,1740858696170,-500.0,0.00030136,2]
[354997170,1740858696179,-507.39,0.00030136,2]
[354997171,1740858696189,-524.67,0.00030136,2]
[354997172,1740858696199,-500.0,0.00030136,2]
[354997173,1740858696209,-821.57,0.00030136,2]
[354997174,1740858696219,-1102.93,0.00030136,2]
[354997175,1740858696229,-507.92,0.00030136,2]
[354997176,1740858696238,-554.05,0.00030136,2]
[354997177,1740858696249,-500.0,0.00030136,2]
[354997178,1740858696260,-500.0,0.00030136,2]
[354997179,1740858696270,-506.77657472,0.00030136,2]
[354997180,1740858696279,-228.60278144,0.00030136,2]
[354997181,1740858696290,-534.95,0.00030136,2]
[354997182,1740858696300,-528.74,0.00030136,2]
[354997183,1740858696310,-887.94,0.00030136,2]
[354997184,1740858696320,-580.50050285,0.00030136,2]
[354997185,1740858696331,-504.34,0.00030136,2]
[354997186,1740858696340,-626.91,0.00030136,2]
[354997187,1740858696350,-724.79,0.00030136,2]
[354997188,1740858696360,-572.85,0.00030136,2]
[354997189,1740858696370,-634.03,0.00030136,2]
[354997190,1740858696380,-544.81,0.00030136,2]
[354997191,1740858696390,-1225.41,0.00030136,2]
[354997192,1740858696400,-650.4,0.00030136,2]
[354997193,1740858696409,-1646.57,0.00030136,2]
[354997194,1740858696419,-574.95,0.00030136,2]
[354997195,1740858696428,-548.18,0.00030136,2]
[354997196,1740858696438,-1162.75,0.00030136,2]
[354997197,1740858696447,-550.88,0.00030136,2]
[354997198,1740858696457,-500.0,0.00030136,2]
[354997199,1740858696467,-574.67,0.00030136,2]
[354997200,1740858696476,-530.38,0.00030136,2]
[354997201,1740858696486,-606.9,0.00030136,2]
[354997202,1740858696495,-731.69,0.00030136,2]
[354997203,1740858696504,-742.69,0.00030136,2]
[354997204,1740858696514,-553.15,0.00030136,2]
[354997205,1740858696524,-546.6,0.00030136,2]
[354997206,1740858696533,-938.89,0.00030136,2]
[354997207,1740858696543,-500.0,0.00030136,2]
[354997208,1740858696552,-500.0,0.00030136,2]
[354997209,1740858696562,-702.7,0.00030136,2]
[354997210,1740858696571,-962.96,0.00030136,2]
[354997211,1740858696581,-871.98,0.00030136,2]
[354997212,1740858696591,-690.67,0.00030136,2]
[354997213,1740858696600,-4231.37,0.00030136,2]
[354997214,1740858696610,-500.0,0.00030136,2]
[354997215,1740858696619,-539.33,0.00030136,2]
[354997216,1740858696629,-741.36,0.00030136,2]
[354997217,1740858696639,-601.03,0.00030136,2]
[354997218,1740858696648,-6071.89,0.00030136,2]
[354997219,1740858696658,-845.71,0.00030136,2]
[354997220,1740858696668,-720.23,0.00030136,2]
[354997221,1740858696678,-569.42,0.00030136,2]
[354997222,1740858696688,-500.0,0.00030136,2]
[354997223,1740858696698,-569.65,0.00030136,2]
[354997224,1740858696708,-683.45,0.00030136,2]
[354997225,1740858696718,-838.27,0.00030136,2]
[354997226,1740858696728,-837.72,0.00030136,2]
[354997227,1740858696738,-825.34,0.00030136,2]
[354997228,1740858696748,-500.0,0.00030136,2]
[354997229,1740858696758,-9196.21,0.00030136,2]
[354997230,1740858696768,-540.61,0.00030136,2]
[354997231,1740858696778,-1573.23,0.00030136,2]
[354997232,1740858696788,-747.87,0.00030136,2]
[354997233,1740858696798,-970.75,0.00030136,2]
[354997234,1740858696807,-1337.47,0.00030136,2]
[354997235,1740858696817,-556.96,0.00030136,2]
[354997236,1740858696827,-575.63368321,0.00030136,2]
[354997237,1740858696836,-519.03,0.00030136,2]
[354997238,1740858696846,-526.62,0.00030136,2]
[354997239,1740858696856,-1519.99,0.00030136,2]
[354997240,1740858696866,-3027.82,0.00030136,2]
[354997241,1740858696875,-7102.79,0.00030136,2]
[354997242,1740858696885,-1042.84,0.00030136,2]
[354997243,1740858696895,-500.0,0.00030136,2]
[354997244,1740858696904,-855.2,0.00030136,2]
[354997245,1740858696914,-653.93,0.00030136,2]
[354997246,1740858696923,-11174.23212299,0.00030187,3]
[354997247,1740858696933,-709.69,0.00030218,2]
[354997248,1740858696943,-159.306733,0.00030369,2]
[354997249,1740858696952,-1579.83,0.0003041,60]
[354997250,1740858696962,-667.189794,0.0003041,2]
[354997251,1740858696972,-865.056936,0.0003041,2]
[354997252,1740858696981,-569.78,0.0003041,2]
[354997253,1740858696991,-877.07,0.0003041,2]
[354997254,1740858697001,-500.0,0.0003041,2]
[354997255,1740858697010,-500.0,0.0003041,2]
[354997256,1740858697020,-504.7,0.0003041,2]
[354997257,1740858697029,-612.55,0.0003041,2]
[354997258,1740858697041,-587.28806613,0.0003041,2]
[354997259,1740858697051,-1898.33,0.0003041,2]
[354997260,1740858697061,-783.37,0.0003041,2]
[354997261,1740858697071,-566.09,0.0003041,2]
[354997262,1740858697080,-313.48,0.0003041,2]
[354997263,1740858697090,-507.39,0.0003041,2]
[354997264,1740858697100,-524.67,0.0003041,2]
[354997265,1740858697110,-500.0,0.0003041,2]
[354997266,1740858697119,-821.57,0.0003041,2]
[354997267,1740858697129,-1102.93,0.0003041,2]
[354997268,1740858697138,-507.92,0.0003041,2]
[354997269,1740858697148,-554.05,0.0003041,2]
[354997270,1740858697157,-500.0,0.0003041,2]
[354997271,1740858697167,-500.0,0.0003041,2]
[354997272,1740858697176,-528.74,0.0003041,2]
[354997273,1740858697185,-887.94,0.0003041,2]
[354997274,1740858697195,-504.34,0.0003041,2]
[354997275,1740858697204,-626.91,0.0003041,2]
[354997276,1740858697214,-724.79,0.0003041,2]
[354997277,1740858697224,-572.85,0.0003041,2]
[354997278,1740858697234,-634.03,0.0003041,2]
[354997279,1740858697244,-544.81,0.0003041,2]
[354997280,1740858697258,-1225.41,0.0003041,2]
[354997281,1740858697267,-650.4,0.0003041,2]
[354997282,1740858697276,-1646.57,0.0003041,2]
[354997283,1740858697286,-574.95,0.0003041,2]
[354997284,1740858697296,-548.18,0.0003041,2]
[354997285,1740858697306,-1162.75,0.0003041,2]
[354997286,1740858697316,-550.88,0.0003041,2]
[354997287,1740858697329,-480.94659757,0.0003041,2]
[354997288,1740858697341,-574.67,0.0003041,2]
[354997289,1740858697351,-530.38,0.0003041,2]
[354997290,1740858697361,-606.9,0.0003041,2]
[354997291,1740858697370,-731.69,0.0003041,2]
[354997292,1740858697380,-742.69,0.0003041,2]
[354997293,1740858697390,-553.15,0.0003041,2]
[354997294,1740858697400,-546.6,0.0003041,2]
[354997295,1740858697410,-938.89,0.0003041,2]
[354997296,1740858697420,-330.0796185,0.0003041,2]
[354997297,1740858697429,-500.0,0.0003041,2]
[354997298,1740858697439,-702.7,0.0003041,2]
[354997299,1740858697450,-962.96,0.0003041,2]
[354997300,1740858697459,-871.98,0.0003041,2]
[354997301,1740858697469,-690.67,0.0003041,2]
[354997302,1740858697478,-4231.37,0.0003041,2]
[354997303,1740858697494,-500.0,0.0003041,2]
[354997304,1740858697516,-539.33,0.0003041,2]
[354997305,1740858697528,-741.36,0.0003041,2]
[354997306,1740858697539,-601.03,0.0003041,2]
[354997307,1740858697551,-6071.89,0.0003041,2]
[354997308,1740858697561,-845.71,0.0003041,2]
[354997309,1740858697571,-720.23,0.0003041,2]
[354997310,1740858697581,-569.42,0.0003041,2]
[354997311,1740858697591,-500.0,0.0003041,2]
[354997312,1740858697602,-569.65,0.0003041,2]
[354997313,1740858697611,-683.45,0.0003041,2]
[354997314,1740858697620,-838.27,0.0003041,2]
[354997315,1740858697630,-837.72,0.0003041,2]
[354997316,1740858697640,-825.34,0.0003041,2]
[354997317,1740858697649,-500.0,0.0003041,2]
[354997318,1740858697659,-9196.21,0.0003041,2]
[354997319,1740858697669,-540.61,0.0003041,2]
[354997320,1740858697678,-1573.23,0.0003041,2]
[354997321,1740858697688,-747.87,0.0003041,2]
[354997322,1740858697698,-970.75,0.0003041,2]
[354997323,1740858697707,-1337.47,0.0003041,2]
[354997324,1740858697717,-556.96,0.0003041,2]
[354997325,1740858697727,-519.03,0.0003041,2]
[354997326,1740858697736,-526.62,0.0003041,2]
[354997327,1740858697746,-1519.99,0.0003041,2]
[354997328,1740858697755,-3027.82,0.0003041,2]
[354997329,1740858697949,-7102.79,0.0003041,2]
[354997330,1740858697959,-1042.84,0.0003041,2]
[354997331,1740858697969,-462.87988145,0.0003041,2]
[354997332,1740858697979,-855.2,0.0003041,2]
[354997333,1740858697989,-653.93,0.0003041,2]
[354997334,1740858697999,-159.13,0.00030503,2]
[354997335,1740858698008,-150.0,0.00030536,120]
[354997336,1740858698018,-1579.83,0.00030684,60]
[354997337,1740858698027,-667.189794,0.00030684,2]
[354997338,1740858698037,-865.056936,0.00030684,2]
[354997339,1740858698047,-569.78,0.00030684,2]
[354997340,1740858698057,-877.07,0.00030684,2]
[354997341,1740858698067,-487.53884454,0.00030684,2]
[354997342,1740858698077,-280.49805679,0.00030684,2]
[354997343,1740858698087,-504.7,0.00030684,2]